[Event "37th Belgrade Trophy 2024"]
[Site "Belgrade"]
[Date "2024.11.26"]
[Round "4.10"]
[White "Javadov, Habil"]
[Black "Milicevic, Aleksa"]
[Result "0-1"]
[ECO "A46"]
[WhiteElo "2190"]
[BlackElo "1982"]
[Annotator "RC"]
[PlyCount "104"]
[EventDate "2024.11.23"]
[EventCountry "SRB"]
[SourceTitle "playchess.com"]
[Source "ChessBase"]
[SourceQuality "1"]
[TimeControl "40/5400+30:900+30"]

1. d4 {[%emt 0:00:09]} d6 {[%emt 0:00:03]} 2. Nf3 {[%emt 0:00:07]} Nf6 {[%emt 0:00:19]} 3. Bf4 {[%emt 0:00:07]} Bg4 {[%emt 0:03:17]} 4. Nbd2 {[%emt 0:01:22]} c6 {[%emt 0:01:29]} 5. h3 {[%emt 0:00:21]} Bxf3 {[%emt 0:00:54]} 6. Nxf3 {[%emt 0:00:06]} Qb6 {[%emt 0:00:44]} 7. Qb1 {[%emt 0:07:07]} Nbd7 {[%emt 0:03:23]} 8. c3 {[%emt 0:01:21]} e6 {[%emt 0:03:41]} 9. e3 {[%emt 0:02:43]} Be7 {[%emt 0:00:26]} 10. Bd3 {[%emt 0:01:57]} h6 {[%emt 0:00:31]} 11. g4 {[%emt 0:01:51]} c5 {[%emt 0:08:03]} 12. Rg1 {[%emt 0:03:53]} g5 {[%emt 0:03:05]} 13. Bg3 {[%emt 0:04:15]} cxd4 {[%emt 0:03:52]} 14. exd4 {[%emt 0:01:33]} Nd5 {[%emt 0:03:32]} 15. Qc2 {[%emt 0:04:11]} a6 {[%emt 0:10:37]} 16. Qe2 {[%emt 0:08:36]} Qa5 {[%emt 0:01:31]} 17. Kf1 {[%emt 0:04:00]} Qc7 {[%emt 0:03:57]} 18. Kg2 {[%emt 0:03:34]} Nf4+ {[%emt 0:01:43]} 19. Bxf4 {[%emt 0:00:28]} gxf4 {[%emt 0:00:02]} 20. Rae1 {[%emt 0:02:35]} O-O-O {[%emt 0:00:44]} 21. Kf1 {[%emt 0:01:12]} Kb8 {[%emt 0:01:37]} 22. h4 {[%emt 0:02:03]} e5 {[%emt 0:12:04]} 23. g5 {[%emt 0:06:02]} hxg5 {[%emt 0:04:18]} 24. hxg5 {[%emt 0:00:55]} Rhg8 {[%emt 0:02:06]} 25. Bf5 {[%emt 0:03:44]} f6 {[%emt 0:12:50]} 26. g6 {[%emt 0:05:38]} Rg7 {[%emt 0:00:26]} 27. Rh1 {[%emt 0:05:54]} Nf8 {[%emt 0:03:07]} 28. Nh4 {[%emt 0:02:16]} Re8 {[%emt 0:04:24]} 29. d5 {[%emt 0:04:04]} Qc5 {[%emt 0:00:57]} 30. Be4 {[%emt 0:03:09]} f5 {[%emt 0:06:32]} 31. Nxf5 {[%emt 0:01:38]} Rxg6 {[%emt 0:01:26]} 32. Nxe7 {[%emt 0:02:33]} Rxe7 {[%emt 0:00:17]} 33. Bxg6 {[%emt 0:00:23]} Nxg6 {[%emt 0:00:17]} 34. Qe4 {[%emt 0:02:27]} Nf8 {[%emt 0:02:14]} 35. Rh8 {[%emt 0:01:44]} Rf7 {[%emt 0:00:54]} 36. Rh3 {[%emt 0:06:21]} Ka7 {[%emt 0:00:52]} 37. a3 {[%emt 0:00:45]} Nd7 {[%emt 0:00:46]} 38. b4 {[%emt 0:00:10]} Qc8 {[%emt 0:00:06]} 39. Rf3 {[%emt 0:05:02]} Nf6 {[%emt 0:00:34]} 40. Qd3 {[%emt 0:01:09]} Ng4 {[%emt 0:01:08]} 41. Rh3 {[%emt 0:16:52]} f3 {[%emt 0:13:51]} 42. Rg3 {[%emt 0:00:00]} Qh8 {[%emt 0:00:17]} 43. Rxf3 {[%emt 0:00:00]} Nh2+ {[%emt 0:00:23]} 44. Ke2 {[%emt 0:00:00]} Nxf3 {[%emt 0:00:14]} 45. Qg6 {[%emt 0:00:00]} Rf6 {[%emt 0:00:32]} 46. Rh1 {[%emt 0:00:00]} Qf8 {[%emt 0:01:19]} 47. Qg4 {[%emt 0:00:00]} Rf4 {[%emt 0:00:27]} 48. Qd7 {[%emt 0:00:00]} Ng5 {[%emt 0:00:58]} 49. Rh2 {[%emt 0:00:00]} Ne4 {[%emt 0:00:33]} 50. Rh7 {[%emt 0:00:00]} Rxf2+ {[%emt 0:00:28]} 51. Ke1 {[%emt 0:00:00]} Rf1+ {[%emt 0:00:15]} 52. Ke2 {[%emt 0:00:00]} Qf3# {[%emt 0:00:05]} 0-1